Cogmind - Beta 16 @@@ ROGUE MODE // 2025.12.06 @ 02:25:20 Player: Red Box Result: Destroyed by 3Z-PB6(R) with Subdweller Beam Cannon Performance ------------- Evolutions (0) 0 Regions Visited (3) 600 Robots Destroyed (42) 210 Value Destroyed (732) 732 Prototype IDs (13) 260 Alien Tech Used (0) 0 Bonus (194) 194 TOTAL SCORE: 1996 Bonus ------- Follower Combat Kills 194 Cogmind --------- Core Integrity 0/250 Matter 277/300 Energy 280/280 System Corruption 0% Temperature Cool (9) Movement Treading (240) Ox1 Location -10/Subcaves Parts ------- > --- POWER (1) -------- Heavy Ion Engine > --- PROPULSION (2) --- Light Treads Subdweller Monowheel > --- UTILITY (2) ------ Large Storage Unit Light Armor Plating > --- WEAPON (2) ------- Subdweller Laser Subdweller Machine Gun > --- INVENTORY (15) --- Heavy Ion Engine Heavy Ion Engine Improved Heat Sink High-capacity Matter Pod (200) Light Armor Plating Improved Light Armor Plating Tower Shield Shield Generator Beamcaster Barrage Gun Rocket Launcher Subdweller Shrapnel Launcher Hammer Piercing Trap Peak State ------------ > --- POWER ------------ Heavy Ion Engine > --- PROPULSION ------- Light Treads Subdweller Monowheel > --- UTILITY ---------- Large Storage Unit Light Armor Plating > --- WEAPON ----------- Battle Rifle Rocket Launcher > --- INVENTORY -------- Heavy Ion Engine Heavy Ion Engine Improved Heat Sink High-capacity Matter Pod Light Armor Plating Improved Light Armor Plating Tower Shield Shield Generator Subdweller Laser Beamcaster Barrage Gun Subdweller Shrapnel Launcher Hammer Piercing Trap [Rating: 17] Favorites ----------- Power Heavy Ion Engine Engine Heavy Ion Engine Power Core Light Nuclear Core Propulsion Light Treads Treads Light Treads Leg Aluminum Leg Wheel Compact Wheel Utility Large Storage Unit Device Improved Terrain Scanner Storage Large Storage Unit Protection Light Armor Plating Weapon Particle Gun Energy Gun Particle Gun Ballistic Gun Assault Rifle Ballistic Cannon Light Cannon Launcher Rocket Launcher Impact Weapon Hammer Build | -11 -10 -10 -10 ------- Run | Yrd Mat Min Sub Slots Evolved . | . . . . Power . | . . . . Propulsion . | . . . . Utility . | . . . . Weapon . | . . . . Parts Attached 39 | 9 18 4 8 Power 8 | 1 6 1 . Engine 7 | 1 5 1 . Core 1 | . 1 . . Reactor . | . . . . Propulsion 8 | 2 3 1 2 Treads 2 | . 1 . 1 Leg 2 | 2 . . . Wheel 4 | . 2 1 1 Hover . | . . . . Flight . | . . . . Utility 10 | 3 5 1 1 Device 3 | 2 1 . . Storage 4 | 1 3 . . Processor . | . . . . Hackware . | . . . . Protection 3 | . 1 1 1 Artifact . | . . . . Weapon 13 | 3 4 1 5 Energy Gun 6 | 1 3 1 1 Energy Cannon . | . . . . Ballistic Gun 4 | 2 . . 2 Ballistic Cannon 1 | . . . 1 Launcher 1 | . . . 1 Special Weapon . | . . . . Impact Weapon 1 | . 1 . . Slashing Weapon . | . . . . Piercing Weapon . | . . . . Special Melee Weapon . | . . . . Unidentified Prototypes 1 | . 1 . . Parts Lost 8 | . 3 3 2 Power 1 | . 1 . . Propulsion 3 | . 1 1 1 Utility 2 | . . 1 1 Weapon 2 | . 1 1 . Highest Loss Streak 2 | . 2 2 1 To Critical Strikes . | . . . . Average Backups 12 | 5 9 14 13 Power 1 | . 1 2 2 Propulsion 1 | 3 2 1 . Utility 5 | . 3 7 6 Weapon 3 | . 2 3 4 Tool/Special . | . . . . Unused Backups 19 | . 3 2 14 Power 2 | . . 1 1 Propulsion 1 | . 1 . . Utility 9 | . 1 . 8 Weapon 7 | . 1 1 5 Tool/Special . | . . . . Average Slot Usage (%) 99 | . 98 99 99 Engine 13 | . 12 14 14 Treads 9 | . 2 14 14 Leg 5 | . 15 . . Wheel 12 | . 9 14 13 Device 4 | . 13 . . Storage 14 | . 14 14 14 Protection 9 | . . 13 14 Energy Gun 20 | . 20 28 16 Ballistic Gun 3 | . 4 . 4 Impact Weapon 3 | . 3 . 4 Peak Build Rating 17 | 9 15 13 17 Average Rating 13 | 7 11 12 14 On Entrance 8 | . 9 13 13 Avg Prop Armor Cover (%) 9 | . 10 10 8 Naked Turns . | . . . . Heaviest Build 39 | 13 37 37 39 Greatest Support 20 | 20 20 16 20 Greatest Overweight (x) 3 | 1 3 3 2 Average Overweight (x) 1 | . 1 2 1 Largest Inventory Capacity 15 | 8 15 15 15 Average Capacity 13 | 7 11 15 15 Most Carried 15 | 7 15 15 15 Average Carried 12 | 5 9 14 14 Final Capacity 15 | 8 15 15 15 Final Carried 15 | 7 15 15 15 Class Distribution -------------------- 100% | Mutant Dominant Class ---------------- Mutant | -10/Materials Mutant | -10/Mines Mutant | -10/Subcaves Resources | -11 -10 -10 -10 ----------- Run | Yrd Mat Min Sub Matter Collected 1292 | 350 543 45 354 Remotely . | . . . . Salvage Created 1372 | 158 822 74 318 Parts 72 | 12 37 4 19 Haulers Intercepted 2 | . 2 . . Recyclers Shooed 1 | . 1 . . Parts Field Recycled . | . . . . Retrieved Matter . | . . . . Parts Self-Destructed 25 | . . . 25 Prevented . | . . . . Parts Restored . | . . . . Kills | -11 -10 -10 -10 ------- Run | Yrd Mat Min Sub Combat Hostiles Destroyed 25 | . 12 5 8 Melee 1 | . . . 1 Guns 18 | . 12 5 1 AOE 6 | . . . 6 Classes Destroyed 11 | 2 7 . 2 Worker 1 | . 1 . . Builder 2 | . 2 . . Tunneler 5 | 5 . . . Hauler 2 | . 2 . . Recycler 4 | 1 3 . . Mechanic 1 | . 1 . . Watcher 2 | . 2 . . Swarmer 13 | . 6 5 2 Grunt 8 | . 6 . 2 Sentry 1 | . . . 1 Subdweller 3 | . . . 3 Best Kill Streak 5 | 5 4 3 3 Combat Bots Only 3 | . 3 3 3 Max Kills in Single Turn 2 | 2 1 1 2 Gunslinging . | . . . . Exploded 2 | . . . 2 Melee 1 | . . . 1 Uniques/NPCs Destroyed . | . . . . Combat | -11 -10 -10 -10 -------- Run | Yrd Mat Min Sub Hostile Shots Fired 129 | . 54 46 29 Missed 31 | . 10 10 11 Hits 98 | . 44 36 18 Melee 1 | . . 1 . Projectile 97 | . 44 35 18 AOE 3 | . . 2 1 Critical Strikes 3 | . 1 2 . Part Disruptions 1 | . . 1 . Damage Taken 1288 | . 512 451 325 Core 267 | . 81 51 135 Absorbed by Shields . | . . . . Core Remaining (%) 100 | 100 . . . Volleys Fired 102 | 10 58 14 20 Largest 2 | 2 2 2 2 Hottest 130 | 40 130 115 115 Shots Fired 201 | 20 115 28 38 Gun 193 | 20 115 28 30 Cannon . | . . . . Launcher 8 | . . . 8 Special . | . . . . Kinetic 56 | 20 26 . 10 Thermal 89 | . 41 28 20 Explosive 8 | . . . 8 Electromagnetic 48 | . 48 . . Robot Hit Streak 23 | 3 9 8 23 Robot Miss Streak 8 | 2 8 2 3 Penetration Max . | . . . . Secondary Targets 3 | . 3 . . Max Gunslinging Chain 1 | . 1 . . Shots Hit Robots 139 | 11 70 18 40 Core Hits 55 | 7 27 6 15 Critical Kills 2 | . 1 . 1 Critical Parts Destroyed 4 | . 2 . 2 Critical Strikes 10 | . 4 1 5 Burn 3 | . 1 1 1 Destroy 1 | . 1 . . Smash 6 | . 2 . 4 Melee Attacks 90 | . 33 . 57 Impact 90 | . 33 . 57 Slashing . | . . . . Piercing . | . . . . Sneak Attacks 6 | . 6 . . Combat Hostiles . | . . . . Follow-up Attacks . | . . . . Damage Inflicted 3386 | 154 1485 265 1482 Guns 1652 | 154 874 265 359 Cannons . | . . . . Explosions 713 | . 193 . 520 Melee 1021 | . 418 . 603 Ramming . | . . . . Kinetic 471 | 154 172 . 145 Thermal 1025 | . 546 265 214 Explosive 520 | . . . 520 Electromagnetic 349 | . 349 . . Impact 1021 | . 418 . 603 Slashing . | . . . . Piercing . | . . . . Highest Corruption . | . . . . Average Corruption . | . . . . Corruption Purged . | . . . . Corruption Blocked . | . . . . Overload Shots . | . . . . Overflow Damage 337 | . 251 . 86 Projectiles . | . . . . Explosions 55 | . 55 . . Melee 282 | . 196 . 86 Knockbacks 2 | . 1 . 1 Impact 2 | . 1 . 1 Kinetic . | . . . . Secondary . | . . . . Self-Inflicted Damage 97 | . 97 . . Shots 3 | . 3 . . Rammed . | . . . . Targets Rammed . | . . . . Kicked . | . . . . Crushed . | . . . . Highest Temperature 396 | . 286 396 12 Average Temperature 103 | . 74 174 5 Received Heat Transfer 293 | . 105 140 48 Siege Activations . | . . . . Martial Activations . | . . . . Shielding Activations . | . . . . Robots Disrupted . | . . . . Combat Hostiles . | . . . . Robots Corrupted 4 | . 3 . 1 Combat Hostiles 1 | . . . 1 Parts Fried 8 | . 7 . 1 Impact Corruptions 12 | . 9 . 3 Robots Melted . | . . . . Combat Hostiles . | . . . . Parts Melted 4 | . 1 3 . Heat Transferred 2522 | . 1275 740 507 Parts Sabotaged . | . . . . Parts Stolen . | . . . . Parts Stripped . | . . . . Power Chain Reactions 4 | . 4 . . Alert | -11 -10 -10 -10 ------- Run | Yrd Mat Min Sub Maximum Alert Level . | . . . . Low Security (%) 100 | 100 100 100 . Level 1 . | . . . . Level 2 . | . . . . Level 3 . | . . . . Level 4 . | . . . . Level 5 . | . . . . High Security . | . . . . Max Security . | . . . . Peak Influence 117 | 15 117 80 . Initial 25 | . . 25 . Average 25 | 3 37 10 . Influence Increases 876 | 30 483 135 228 Destroy 0b10 Robot/C 480 | . 240 100 140 Destroy 0b10 Robot/NC 85 | 30 55 . . Destroy Leader 88 | . 68 20 . Allied During Kill 13 | . . . 13 Successful Hack 37 | . 37 . . Select Force Hacks 30 | . 30 . . Disable Machine 30 | . 30 . . Destroy Structure 23 | . 23 . . Lose Combat Pursuer 90 | . . 15 75 Influence Decreases 772 | 30 417 201 124 Entered New Map 41 | . . 41 . Time Decay 661 | 30 387 140 104 Lost Part 40 | . 30 10 . Lost Ally 30 | . . 10 20 Squads Dispatched 4 | . 4 . . Investigation 3 | . 3 . . Extermination . | . . . . Reinforcement 1 | . 1 . . Assault . | . . . . Garrison . | . . . . Intercept . | . . . . Searches Triggered . | . . . . Construction Impeded . | . . . . Haulers Reinforced . | . . . . Active Scanning Responses . | . . . . Cargo Convoy Interrupts . | . . . . Stealth | -11 -10 -10 -10 --------- Run | Yrd Mat Min Sub Distress Signals 1 | . 1 . . Communications Jammed . | . . . . Distress Signals . | . . . . Times Spotted 74 | . 27 28 19 Peak Tracking Total 20 | . 4 20 4 Tactical Retreats 3 | . . 2 1 Traps | -11 -10 -10 -10 ------- Run | Yrd Mat Min Sub Traps Triggered 2 | . 2 . . Indirectly . | . . . . Trap Hack Attempts . | . . . . Triggered . | . . . . Disarmed . | . . . . Reprogrammed . | . . . . Reused . | . . . . Traps Extracted . | . . . . Installed . | . . . . Triggered . | . . . . Most Traps Carried 1 | . . . 1 Machines | -11 -10 -10 -10 ---------- Run | Yrd Mat Min Sub Machines Disabled 5 | . 2 . 3 Max in Single Turn 2 | . 1 . 2 Machines Repaired . | . . . . Machines Dismantled . | . . . . Machines Sabotaged . | . . . . Overloaded Fab Kills . | . . . . Hacking | -11 -10 -10 -10 --------- Run | Yrd Mat Min Sub Machines Accessed 12 | . 9 . 3 Terminals 7 | . 7 . . Fabricators . | . . . . Repair Stations 1 | . 1 . . Recycling Units 1 | . 1 . . Scanalyzers . | . . . . Garrison Access . | . . . . Total Hacks 33 | . 28 . 5 Successful 24 | . 19 . 5 Failed 8 | . 8 . . Catastrophic . | . . . . Database Lockouts 1 | . 1 . . Manual 24 | . 24 . . Terminals 24 | . 24 . . Fabricators . | . . . . Repair Stations 1 | . 1 . . Recycling Units 3 | . 3 . . Scanalyzers . | . . . . Garrison Access . | . . . . Terminal Hacks 10 | . 5 . 5 Record 3 | . . . 3 Robot Analysis 3 | . 3 . . Open Door 1 | . . . 1 Terminal Index 1 | . 1 . . Locate Traps 1 | . 1 . . Proto ID Catalog 1 | . . . 1 Fabricator Hacks . | . . . . Repair Station Hacks . | . . . . Recycling Unit Hacks 1 | . 1 . . Retrieve Components 1 | . 1 . . Scanalyzer . | . . . . Garrison Access Hacks . | . . . . Unauthorized Hacks 13 | . 13 . . Terminals 12 | . 12 . . Assimilate 4 | . 4 . . Botnet 2 | . 2 . . Operators 1 | . 1 . . Skim 5 | . 5 . . Fabricators . | . . . . Repair Stations . | . . . . Recycling Units 1 | . 1 . . Tunnel 1 | . 1 . . Scanalyzers . | . . . . Garrison Access . | . . . . Data Cores Recovered . | . . . . Used . | . . . . Hacking Detections 9 | . 9 . . Full Trace Events 2 | . 2 . . Feedback Events . | . . . . Feedback Blocked . | . . . . Robot Schematics Acquired . | . . . . Robots Built . | . . . . Authchips . | . . . . Time . | . . . . Total Robot Build Rating . | . . . . Part Schematics Acquired . | . . . . Parts Built . | . . . . Authchips . | . . . . Time . | . . . . Total Part Build Rating . | . . . . Part Studies Acquired . | . . . . Parts Repaired . | . . . . Time . | . . . . Parts Recycled . | . . . . Recycled Matter . | . . . . Retrieved Matter . | . . . . Retrieved Components 3 | . 3 . . Parts Scanalyzed . | . . . . Part Schematics Acquired . | . . . . Parts Damaged . | . . . . Bothacking | -11 -10 -10 -10 ------------ Run | Yrd Mat Min Sub Used RIF Installer . | . . . . Robots Hacked . | . . . . Non-combat . | . . . . Combat . | . . . . Robot Hacks Applied . | . . . . Relay Couplers Released . | . . . . Fabnet Peak Effective % . | . . . . Robots Rewired . | . . . . Allies Hacked . | . . . . Hacks Repelled . | . . . . Allies | -11 -10 -10 -10 -------- Run | Yrd Mat Min Sub Total Allies 4 | . 1 3 . Largest Group 3 | . 1 3 3 Highest-Rated Group 40 | . 10 40 40 Highest-Rated Ally 16 | . 10 16 16 Total Orders 21 | . 3 4 14 STAY 11 | . 2 2 7 FOLLOW 10 | . 1 2 7 Ally Attacks 49 | . . 2 47 Total Damage 615 | . . 32 583 Kills 8 | . . . 8 Allies Corrupted . | . . . . Allies Melted . | . . . . Intel | -11 -10 -10 -10 ------- Run | Yrd Mat Min Sub Active Infowar (turns) 1397 | 115 1282 . . Terrain 1397 | 115 1282 . . Robot Analysis Total 3 | . 3 . . Derelict Logs Recovered 3 | . . 2 1 Drone Launches . | . . . . Drone Recoveries . | . . . . Exploration | -11 -10 -10 -10 ------------- Run | Yrd Mat Min Sub Turns Passed 5300 | 163 1839 1167 2131 Spaces Moved 3196 | 97 1121 785 1193 Core 9 | 9 . . . Treads 261 | . . . 261 Legs 609 | 88 521 . . Wheels 2317 | . 600 785 932 Hover . | . . . . Flight . | . . . . Fastest Speed 50 | 50 95 125 130 Average Speed 133 | 116 116 129 154 Slowest Speed 240 | 190 190 130 240 Overloaded Moves . | . . . . Propulsion Burnouts . | . . . . Robots Hopped . | . . . . Potential Cave-ins . | . . . . Cave-ins Triggered . | . . . . Exploration Rate (%) 66 | 4 98 97 67 Regions Visited 3 Branch Regions 2 Pre-discovered Areas 4 | . 2 2 . Known Exits Taken 1 | . . 1 . Unknown Exits Taken 2 | 1 1 . . Scrap Searched 8 | . . 2 6 Spaces Dug 10 | . 9 . 1 Terrain Destroyed 60 | . 21 . 39 Melee 10 | . 9 . 1 Projectile . | . . . . AOE 50 | . 12 . 38 Terrain Rammed . | . . . . Walls Destroyed . | . . . . Machines Disabled . | . . . . Actions | -11 -10 -10 -10 --------- Run | Yrd Mat Min Sub Total 3849 | 123 1476 908 1342 Wait 321 | . 202 92 27 Move 3193 | 96 1120 784 1193 Hop . | . . . . Pick Up 41 | 7 18 8 8 Fast Attach 19 | 7 9 . 3 Attach 8 | . 3 3 2 Detach 1 | . 1 . . Swap 42 | 2 16 2 22 Drop 32 | 1 16 5 10 Fire 102 | 10 58 14 20 Melee 90 | . 33 . 57 Ram . | . . . . Kick . | . . . . Crush . | . . . . Escape Stasis . | . . . . Rewire . | . . . . Trap . | . . . . Miscellaneous . | . . . . Route ------- -11/Scrapyard -10/Materials (discovered 5 exits: *Mat x3 / [*Min] / Sub) -10/Mines (discovered 4 exits: *Mat x2 / [*Exi] / *Sub) -10/Subcaves (discovered 2 exits: *Mat x2) History --------- Turn | Location | Event 10 | -11/Scrapyard | Discovered new exit (range 15) 164 | -11/Scrapyard | Entered Materials 303 | -10/Materials | Discovered new exit (range 12) 310 | -10/Materials | Build established: Mutant 865 | -10/Materials | Discovered new exit (range 15) 1166 | -10/Materials | Discovered new exit (range 11) 1429 | -10/Materials | Learned 2 Mines zone layouts 1462 | -10/Materials | Identified exit to Subcaves 1462 | -10/Materials | Identified exit to Materials 1462 | -10/Materials | Learned location of 1 exit from Materials 1496 | -10/Materials | Learned location of 1 exit from Recycling 1497 | -10/Materials | Learned Storage emergency access door positions 1498 | -10/Materials | Learned 4 Subcaves zone layouts 1529 | -10/Materials | Learned location of 1 exit from Recycling 1548 | -10/Materials | Central database locked down 2003 | -10/Materials | Entered Mines 2003 | -10/Mines | Accompanied by 1 ally 2004 | -10/Mines | Assembled infested the area 2004 | -10/Mines | Met a Derelict testing a Signal Generator 2027 | -10/Mines | Met 8R-AWN 2050 | -10/Mines | Learned location of Zion (-6) 2193 | -10/Mines | Assisted by bots powering up and referring to "LRC-V3" 2282 | -10/Mines | Discovered exit to Materials (range 10) 2342 | -10/Mines | Found a Scrap Suit stashed away for nefarious purposes 2351 | -10/Mines | Discovered new exit (range 5) 2404 | -10/Mines | Received a Rocket Launcher from a helpful Derelict 2520 | -10/Mines | Found a hidden stash of uninstalled traps 2533 | -10/Mines | Discovered exit to Materials (range 7) 2682 | -10/Mines | Core integrity fell below 50% 2824 | -10/Mines | Learned location of Storage (-7) 2933 | -10/Mines | Discovered exit to Subcaves (range 5) 3170 | -10/Mines | Entered Subcaves 3170 | -10/Subcaves | Accompanied by 3 allies 3171 | -10/Subcaves | Identified exit to Materials 3412 | -10/Subcaves | Visited 4L-MR0's lab 3425 | -10/Subcaves | Found Tower Shield 3542 | -10/Subcaves | Discovered exit to Materials (range 15) 3844 | -10/Subcaves | Core integrity fell below 20% 3915 | -10/Subcaves | A swath of the cavern ceiling suddenly collapsed 4150 | -10/Subcaves | Shifting Twisted Machinery released Scrap Shield 4161 | -10/Subcaves | Shifting Twisted Machinery released Barrage Gun 4565 | -10/Subcaves | Disturbed a concealed Subdweller 5240 | -10/Subcaves | Visited Clippyterm 5247 | -10/Subcaves | Learned Factory emergency access door positions 5301 | -10/Subcaves | Destroyed by 3Z-PB6(R) with Subdweller Beam Cannon Last Messages --------------- 05235_ A thin wall crumbles away, revealing a door. 05240_ The door opens automatically. 05247_ Connecting with Clippyterm... >>Record "Clippyterm" Welcome to Clippyterm v0.53, my misguided attempt to resurrect an ancient AI. I give up. There must be something fundamentally wrong with the algorithm, because no matter how much data I collect to feed it, half the time it still manages to suggest unhelpful sample queries and responses. --DD-NU8 >>Record "Hide-and-Seek" It looks like you're trying to avoid detection, would you like help? Data stored: Factory emergency access points. >>Record "LRC-V1" It looks like you're REDACTED, I can suggest REDACTED and REDACTED. Also definitely avoid REDACTED. 05292_ Mercenary 1a destroyed. Map ----- +----------------------------------------------------+ | ???????????????????????????????## ##????????????? | | ??????????????????????????????## #????????????? | | ??????????????????????????????# #????????????? | | ??????????????????????????????## #????????????? | | ???????????????????????????????## #????????????? | | ????????????????????????????##??# #????????????? | | ????????????????????????????# ### #????????????? | | ????????????????????????????# ##????????????? | | ???????????????????????????## #?????????????? | | ??????????????????????????## #?????????????? | | ??????????????????????????# ##?????????????? | | ??????????????????????????# #??????????????? | | ??????????????????????????# ##?????????????? | | ??????????????????????????## #?????????????? | | ?????????????????????? ##?## #?????????????? | | ????????????????????? #### #?????????????? | | ?????????????????????? ##### #?????????????? | | ???????????????????????# #?## #?????????????? | | ???????????????????????# ?## #?????????????? | | ??????????????????????## ## ##?????????????? | | ?????????????????????## ###????????????? | | ?????????????????????# #????????????? | | ?????????????????????# #### ##????????????? | | ?????????????????????# #??### #?????????????? | | ?????????????????????##RR##???# #?????????????? | | ?????????????????????# @#???# ##?????????????? | | ????????????????????### #???## ##?????????????? | | ????????????????????# % #???## ######????????? | | ???????????????????## ##???# ## ##???????? | | ???????????????????# ###?## ## #???????? | | ???????????????????# ### ## #???????? | | ???????????????????# ### ### #???????? | | ???????????????????# ####????? | | ???????????????????#; # ###??? | | ???????????????###### [ #??? | | ???????????????#"""### ##### | | ???????????????#"" ## # ## ## & = # # | | ???????????????#"X # ########## ## !! | | ???????????????#"" ## # ##????????## ## | | ???????????????#"""## ##????###???## ## ### | | ???????????????###### #????## ##???# #?# | | ????????????????????# ### #???## ?#### ##?## | | ????????????????????###?###??## ### ## #???# | | ??????????????????????????#### ## ## ##??## | | ???????????????????######## #???? | | ???????????????????# ## ##??? | | ???????????????????# ### ##?? | | ???????????????????## ##?# #?? | | ???????????????????## ##?## ##? | | ???????????????????# ##?# #" ## | +----------------------------------------------------+ Best States ------------- Heat Dissipation 39 Energy Generation 14 Energy Capacity 280 Matter Stores 300 Matter Capacity 300 Sight Range 16 Terrain Scan Range 16 Terrain Scan Density 10 Armor Coverage 150 Evasion (%) 55 Recoil Reduction 1 Item Schematics ----------------- None Robot Schematics ------------------ None Fabricated ------------ Nothing Repaired ---------- Nothing Studied --------- None Alien Tech Used ----------------- None Achievements -------------- None Challenges ------------ None Game ------ Seed SlugAlphaMagmablaster Manual? 0 Play Time 00:36:21 Cumulative 776.0 hours Start 2025.12.06 @ 01:46:29 End 2025.12.06 @ 02:25:20 Sessions 1 Manual Loads 0 Difficulty Rogue Special Mode None Game No. 538 Rogue 538 Adventurer 0 Explorer 0 Win Type - Total 1 Types 1/0/0/0/0/0/0/0/0/0 Lore% 76 Gallery% 70 Achievement% 50 Wizard Run 0 Options --------- Layout 1 ASCII 0 Keyboard 0 Movement Mouse Keybinds 0 Fullscreen 1 Font 20/SmallcapsGlow Map View 54x42 Zoom Use 0% Tactical HUD 1 Map Filters NONE Filters NONE Steam 1 RUN: 0bdc0885-b430-4be7-95d8-382941657e3d